[Event "Early-Titled-Tuesday-Blitz-September-05-2023"]
[Site "Chess.com"]
[Date "2023.09.05"]
[Round "9"]
[White "McCarthyStone"]
[Black "NelsonLinda"]
[Result "1-0"]
[WhiteElo "2434"]
[BlackElo "2482"]
[TimeControl "180+1"]
[EndTime "9:44:33 PDT"]
[Termination "McCarthyStone won by checkmate"]

1. b3 {[%clk 0:03:00.9]} 1... e5 {[%clk 0:02:51.3]} 2. Bb2 {[%clk 0:03:01.5]}
2... Nc6 {[%clk 0:02:51.6]} 3. e3 {[%clk 0:03:02.1]} 3... Nf6 {[%clk 0:02:51.9]}
4. Bb5 {[%clk 0:03:02.3]} 4... Bd6 {[%clk 0:02:52.3]} 5. Na3 {[%clk 0:03:02.6]}
5... a6 {[%clk 0:02:45.2]} 6. Be2 {[%clk 0:03:01.6]} 6... e4 {[%clk 0:02:24.3]}
7. Nc4 {[%clk 0:03:00.3]} 7... Be7 {[%clk 0:02:23.8]} 8. d3 {[%clk 0:02:56.5]}
8... O-O {[%clk 0:02:21.7]} 9. Nd2 {[%clk 0:02:38.2]} 9... d5 {[%clk 0:02:18.5]}
10. Nh3 {[%clk 0:02:26.5]} 10... Bf5 {[%clk 0:02:03.7]} 11. Nf4 {[%clk
0:02:24.7]} 11... h6 {[%clk 0:01:54.6]} 12. g4 {[%clk 0:02:24.5]} 12... Bh7
{[%clk 0:01:54.7]} 13. h4 {[%clk 0:02:25]} 13... exd3 {[%clk 0:01:48]} 14. Nxd3
{[%clk 0:02:20.3]} 14... Ne4 {[%clk 0:01:46.1]} 15. Nxe4 {[%clk 0:02:01]} 15...
dxe4 {[%clk 0:01:47]} 16. Nf4 {[%clk 0:02:00.7]} 16... Bxh4 {[%clk 0:01:40.9]}
17. Qxd8 {[%clk 0:01:47.7]} 17... Bxd8 {[%clk 0:01:38.8]} 18. Nh5 {[%clk
0:01:48.1]} 18... f6 {[%clk 0:01:34.5]} 19. g5 {[%clk 0:01:17.1]} 19... Ne5
{[%clk 0:01:10.1]} 20. gxf6 {[%clk 0:01:03.1]} 20... gxf6 {[%clk 0:00:59.5]} 21.
O-O-O {[%clk 0:00:59.6]} 21... Be7 {[%clk 0:00:23.1]} 22. Rdg1+ {[%clk
0:00:59.3]} 22... Kh8 {[%clk 0:00:22.6]} 23. Nf4 {[%clk 0:00:47.9]} 23... Rg8
{[%clk 0:00:22.6]} 24. Rd1 {[%clk 0:00:29]} 24... c6 {[%clk 0:00:10.5]} 25. Rxh6
{[%clk 0:00:26.7]} 25... Rad8 {[%clk 0:00:10.7]} 26. Rdh1 {[%clk 0:00:26.1]}
26... Rg7 {[%clk 0:00:05]} 27. Ne6 {[%clk 0:00:26]} 27... Rdg8 {[%clk
0:00:05.5]} 28. Nxg7 {[%clk 0:00:17.3]} 28... Rxg7 {[%clk 0:00:06.4]} 29. Bxe5
{[%clk 0:00:11.3]} 29... fxe5 {[%clk 0:00:06.5]} 30. Bc4 {[%clk 0:00:11.1]}
30... Bg5 {[%clk 0:00:04]} 31. Re6 {[%clk 0:00:07.4]} 31... Re7 {[%clk
0:00:03.6]} 32. Rd6 {[%clk 0:00:06]} 32... Kg7 {[%clk 0:00:03.3]} 33. Re6 {[%clk
0:00:04.9]} 33... Rxe6 {[%clk 0:00:03.4]} 34. Bxe6 {[%clk 0:00:05.8]} 34... Bg6
{[%clk 0:00:03.7]} 35. Kb2 {[%clk 0:00:05.7]} 35... a5 {[%clk 0:00:03.4]} 36.
Bg4 {[%clk 0:00:06]} 36... Kf6 {[%clk 0:00:03.3]} 37. a4 {[%clk 0:00:06.5]}
37... Kg7 {[%clk 0:00:03.6]} 38. Rd1 {[%clk 0:00:07.1]} 38... Be8 {[%clk
0:00:02.5]} 39. Rd2 {[%clk 0:00:06.8]} 39... Be7 {[%clk 0:00:02.7]} 40. Bd7
{[%clk 0:00:06.7]} 40... Bf7 {[%clk 0:00:02.1]} 41. Bc8 {[%clk 0:00:07.3]} 41...
b6 {[%clk 0:00:02.2]} 42. Rd7 {[%clk 0:00:07.5]} 42... Kf6 {[%clk 0:00:02.2]}
43. Rb7 {[%clk 0:00:06.8]} 43... Bd8 {[%clk 0:00:02.4]} 44. Rd7 {[%clk
0:00:06.7]} 44... Be7 {[%clk 0:00:01.9]} 45. Rd2 {[%clk 0:00:06.7]} 45... Bd5
{[%clk 0:00:02.1]} 46. Bd7 {[%clk 0:00:06.6]} 46... Bf7 {[%clk 0:00:01.1]} 47.
Bxc6 {[%clk 0:00:06.2]} 47... Bb4 {[%clk 0:00:01.8]} 48. c3 {[%clk 0:00:06]}
48... Bc5 {[%clk 0:00:02.3]} 49. Bxe4 {[%clk 0:00:06.4]} 49... Be6 {[%clk
0:00:02.3]} 50. Bc2 {[%clk 0:00:06.9]} 50... Ke7 {[%clk 0:00:02.6]} 51. Re2
{[%clk 0:00:07.4]} 51... Bg4 {[%clk 0:00:02.7]} 52. Re1 {[%clk 0:00:07.8]} 52...
Bf3 {[%clk 0:00:03]} 53. Rg1 {[%clk 0:00:08.3]} 53... Bc6 {[%clk 0:00:03]} 54.
Rg7+ {[%clk 0:00:07.5]} 54... Kd6 {[%clk 0:00:03.4]} 55. Rg6+ {[%clk 0:00:08.4]}
55... Kc7 {[%clk 0:00:03.8]} 56. Rg5 {[%clk 0:00:07.9]} 56... Bd6 {[%clk
0:00:02.5]} 57. Rg6 {[%clk 0:00:07.4]} 57... Be8 {[%clk 0:00:02.3]} 58. Rg7+
{[%clk 0:00:07.1]} 58... Kd8 {[%clk 0:00:02.7]} 59. Rg1 {[%clk 0:00:06.9]} 59...
Ke7 {[%clk 0:00:03]} 60. Rd1 {[%clk 0:00:07.5]} 60... Bh5 {[%clk 0:00:02.8]} 61.
Re1 {[%clk 0:00:07.4]} 61... Kf6 {[%clk 0:00:02.7]} 62. Bd3 {[%clk 0:00:07.8]}
62... Bf3 {[%clk 0:00:02.9]} 63. Kc2 {[%clk 0:00:08.2]} 63... e4 {[%clk
0:00:02.7]} 64. Be2 {[%clk 0:00:08.4]} 64... Ke5 {[%clk 0:00:02.2]} 65. Bxf3
{[%clk 0:00:08.7]} 65... exf3 {[%clk 0:00:03.1]} 66. Rd1 {[%clk 0:00:09.3]}
66... Be7 {[%clk 0:00:03.8]} 67. Rd4 {[%clk 0:00:09.5]} 67... Bg5 {[%clk
0:00:04]} 68. Rd2 {[%clk 0:00:09.6]} 68... Bh4 {[%clk 0:00:04.3]} 69. Rd4 {[%clk
0:00:10]} 69... Bxf2 {[%clk 0:00:04.4]} 70. Rf4 {[%clk 0:00:10.1]} 70... Bxe3
{[%clk 0:00:04.5]} 71. Rxf3 {[%clk 0:00:10.6]} 71... Bc5 {[%clk 0:00:04.2]} 72.
Rd3 {[%clk 0:00:10.8]} 72... Be7 {[%clk 0:00:04]} 73. Kd1 {[%clk 0:00:10.4]}
73... Bg5 {[%clk 0:00:03.8]} 74. Ke2 {[%clk 0:00:10.8]} 74... Bh6 {[%clk
0:00:03.7]} 75. c4 {[%clk 0:00:10.6]} 75... Bf8 {[%clk 0:00:02.8]} 76. Rd5+
{[%clk 0:00:11.1]} 76... Ke6 {[%clk 0:00:02.8]} 77. Kd3 {[%clk 0:00:11.7]} 77...
Bb4 {[%clk 0:00:02.9]} 78. Rb5 {[%clk 0:00:11.4]} 78... Bc5 {[%clk 0:00:03.4]}
79. Rxc5 {[%clk 0:00:11.4]} 79... bxc5 {[%clk 0:00:04]} 80. Ke4 {[%clk 0:00:12]}
80... Kd6 {[%clk 0:00:04]} 81. Kf5 {[%clk 0:00:11.8]} 81... Kd7 {[%clk 0:00:04]}
82. Ke5 {[%clk 0:00:11.1]} 82... Kc6 {[%clk 0:00:04.9]} 83. Ke6 {[%clk
0:00:11.5]} 83... Kc7 {[%clk 0:00:05.1]} 84. Kd5 {[%clk 0:00:12]} 84... Kb6
{[%clk 0:00:06]} 85. Kd6 {[%clk 0:00:12.5]} 85... Kb7 {[%clk 0:00:06.1]} 86.
Kxc5 {[%clk 0:00:13.1]} 86... Ka6 {[%clk 0:00:07]} 87. Kc6 {[%clk 0:00:13.4]}
87... Ka7 {[%clk 0:00:07.5]} 88. Kb5 {[%clk 0:00:14.3]} 88... Kb8 {[%clk
0:00:08.4]} 89. Kxa5 {[%clk 0:00:15.2]} 89... Ka8 {[%clk 0:00:09.3]} 90. Kb5
{[%clk 0:00:16.1]} 90... Ka7 {[%clk 0:00:10.2]} 91. Kc5 {[%clk 0:00:17]} 91...
Kb7 {[%clk 0:00:11.1]} 92. Kd5 {[%clk 0:00:17.9]} 92... Ka7 {[%clk 0:00:12]} 93.
Kd4 {[%clk 0:00:18.8]} 93... Kb7 {[%clk 0:00:12.9]} 94. Ke4 {[%clk 0:00:19.7]}
94... Ka7 {[%clk 0:00:13.8]} 95. Kf5 {[%clk 0:00:20.6]} 95... Kb7 {[%clk
0:00:14.7]} 96. Ke6 {[%clk 0:00:21.5]} 96... Ka7 {[%clk 0:00:15.6]} 97. Kd7
{[%clk 0:00:21.8]} 97... Kb7 {[%clk 0:00:16.5]} 98. c5 {[%clk 0:00:22.2]} 98...
Ka7 {[%clk 0:00:17.4]} 99. b4 {[%clk 0:00:22.8]} 99... Kb7 {[%clk 0:00:18.3]}
100. c6+ {[%clk 0:00:23.2]} 100... Ka7 {[%clk 0:00:19.2]} 101. c7 {[%clk
0:00:23.7]} 101... Ka6 {[%clk 0:00:20.1]} 102. c8=Q+ {[%clk 0:00:23.8]} 102...
Ka7 {[%clk 0:00:21]} 103. Qc7+ {[%clk 0:00:24.1]} 103... Ka6 {[%clk 0:00:21.4]}
104. b5# {[%clk 0:00:21.7]} 1-0

[Event "Early-Titled-Tuesday-Blitz-September-05-2023"]
[Site "Chess.com"]
[Date "2023.09.05"]
[Round "9"]
[White "shimastream"]
[Black "mishanick"]
[Result "1-0"]
[WhiteElo "2979"]
[BlackElo "3058"]
[TimeControl "180+1"]
[EndTime "9:45:02 PDT"]
[Termination "shimastream won on time"]

1. e4 {[%clk 0:03:00.9]} 1... c5 {[%clk 0:03:00.6]} 2. Nf3 {[%clk 0:02:58.6]}
2... e6 {[%clk 0:03:01.2]} 3. d4 {[%clk 0:02:51.7]} 3... cxd4 {[%clk 0:03:02.1]}
4. Nxd4 {[%clk 0:02:52.6]} 4... Nc6 {[%clk 0:03:02.7]} 5. Be2 {[%clk 0:02:52.3]}
5... Nf6 {[%clk 0:03:02.6]} 6. Nc3 {[%clk 0:02:51.9]} 6... d5 {[%clk 0:02:58.7]}
7. exd5 {[%clk 0:02:47.4]} 7... Nxd5 {[%clk 0:02:58.2]} 8. Nxd5 {[%clk
0:02:44.7]} 8... exd5 {[%clk 0:02:30.9]} 9. O-O {[%clk 0:02:43.2]} 9... Be7
{[%clk 0:02:30.8]} 10. c3 {[%clk 0:02:39.1]} 10... O-O {[%clk 0:02:31]} 11. Be3
{[%clk 0:02:39.7]} 11... Bf6 {[%clk 0:02:29.6]} 12. Qd2 {[%clk 0:02:38.5]} 12...
Re8 {[%clk 0:02:29]} 13. Rfe1 {[%clk 0:02:37.7]} 13... Be6 {[%clk 0:02:17.7]}
14. Rad1 {[%clk 0:02:37.2]} 14... Qd6 {[%clk 0:02:16.1]} 15. Bf1 {[%clk
0:02:13.8]} 15... a6 {[%clk 0:02:15.7]} 16. Nxc6 {[%clk 0:01:49.8]} 16... bxc6
{[%clk 0:02:15.4]} 17. b4 {[%clk 0:01:41.1]} 17... a5 {[%clk 0:02:13.9]} 18. a3
{[%clk 0:01:38.9]} 18... axb4 {[%clk 0:02:13.7]} 19. axb4 {[%clk 0:01:39.8]}
19... Ra3 {[%clk 0:02:04.8]} 20. Bd4 {[%clk 0:01:39.9]} 20... Bxd4 {[%clk
0:01:58.6]} 21. Qxd4 {[%clk 0:01:40.8]} 21... Rea8 {[%clk 0:01:53.8]} 22. h4
{[%clk 0:01:38.4]} 22... h6 {[%clk 0:01:50.4]} 23. Re3 {[%clk 0:01:35.8]} 23...
Ra1 {[%clk 0:01:33.4]} 24. Rg3 {[%clk 0:01:22.3]} 24... Qf8 {[%clk 0:01:32.9]}
25. Rgd3 {[%clk 0:01:17.7]} 25... Qe7 {[%clk 0:01:15.7]} 26. Rg3 {[%clk
0:01:15.2]} 26... Qf8 {[%clk 0:00:59.5]} 27. Be2 {[%clk 0:01:09.3]} 27... Bf5
{[%clk 0:00:58]} 28. Rxa1 {[%clk 0:00:51.3]} 28... Rxa1+ {[%clk 0:00:57.6]} 29.
Kh2 {[%clk 0:00:52.2]} 29... f6 {[%clk 0:00:49.4]} 30. Re3 {[%clk 0:00:49]}
30... Qd6+ {[%clk 0:00:45.8]} 31. g3 {[%clk 0:00:48.6]} 31... Qd7 {[%clk
0:00:41.6]} 32. Bf3 {[%clk 0:00:47]} 32... Rc1 {[%clk 0:00:38.4]} 33. Qc5 {[%clk
0:00:37.3]} 33... Kh7 {[%clk 0:00:37.4]} 34. Qd4 {[%clk 0:00:27.4]} 34... Rc2
{[%clk 0:00:33.6]} 35. Re2 {[%clk 0:00:27.2]} 35... Rxe2 {[%clk 0:00:28.7]} 36.
Bxe2 {[%clk 0:00:28.1]} 36... Qe6 {[%clk 0:00:29.2]} 37. Bf3 {[%clk 0:00:28.2]}
37... Qe1 {[%clk 0:00:25.3]} 38. Kg2 {[%clk 0:00:27.3]} 38... Be6 {[%clk
0:00:16.6]} 39. Qd3+ {[%clk 0:00:25.2]} 39... Kg8 {[%clk 0:00:16.6]} 40. Qe2
{[%clk 0:00:23.3]} 40... Qxe2 {[%clk 0:00:17]} 41. Bxe2 {[%clk 0:00:24.2]} 41...
g5 {[%clk 0:00:17.5]} 42. f4 {[%clk 0:00:23.6]} 42... gxf4 {[%clk 0:00:17.3]}
43. gxf4 {[%clk 0:00:23.7]} 43... Kf7 {[%clk 0:00:17.9]} 44. Kf2 {[%clk
0:00:24.4]} 44... Kg6 {[%clk 0:00:07.3]} 45. Bf1 {[%clk 0:00:20.6]} 45... Bg4
{[%clk 0:00:06]} 46. Kg3 {[%clk 0:00:19.1]} 46... Bd1 {[%clk 0:00:05.9]} 47.
Bd3+ {[%clk 0:00:18.8]} 47... Kf7 {[%clk 0:00:06.1]} 48. Kf2 {[%clk 0:00:19.4]}
48... Ke7 {[%clk 0:00:06.2]} 49. Ke3 {[%clk 0:00:20]} 49... Kd6 {[%clk
0:00:06.8]} 50. Kd4 {[%clk 0:00:20.7]} 50... Bg4 {[%clk 0:00:07.1]} 51. Bf1
{[%clk 0:00:20.1]} 51... Bd7 {[%clk 0:00:07.2]} 52. Bd3 {[%clk 0:00:20.3]} 52...
Be8 {[%clk 0:00:07.2]} 53. Bf5 {[%clk 0:00:19.6]} 53... Bf7 {[%clk 0:00:07.2]}
54. Bg4 {[%clk 0:00:19.6]} 54... Bg6 {[%clk 0:00:07.5]} 55. Bf3 {[%clk
0:00:18.2]} 55... Bf5 {[%clk 0:00:07.9]} 56. c4 {[%clk 0:00:17]} 56... dxc4
{[%clk 0:00:08]} 57. Kxc4 {[%clk 0:00:17.9]} 57... Be6+ {[%clk 0:00:08.3]} 58.
Kd4 {[%clk 0:00:18.1]} 58... Bc8 {[%clk 0:00:08.9]} 59. Be4 {[%clk 0:00:18]}
59... Ba6 {[%clk 0:00:09.4]} 60. Bc2 {[%clk 0:00:18]} 60... Bb5 {[%clk
0:00:09.9]} 61. Ke4 {[%clk 0:00:17.2]} 61... Ke6 {[%clk 0:00:08.5]} 62. Bb3+
{[%clk 0:00:17]} 62... Ke7 {[%clk 0:00:09]} 63. Kf5 {[%clk 0:00:17.6]} 63...
Bd3+ {[%clk 0:00:09.2]} 64. Kg4 {[%clk 0:00:17.9]} 64... Bg6 {[%clk 0:00:09.7]}
65. Kf3 {[%clk 0:00:13.5]} 65... Kd6 {[%clk 0:00:09.8]} 66. Ke3 {[%clk
0:00:13.7]} 66... Bf5 {[%clk 0:00:09.7]} 67. Kd4 {[%clk 0:00:13.5]} 67... Bb1
{[%clk 0:00:06.8]} 68. Bc4 {[%clk 0:00:13.5]} 68... Bg6 {[%clk 0:00:07]} 69. Bb3
{[%clk 0:00:09.3]} 69... Be8 {[%clk 0:00:06.6]} 70. Bc4 {[%clk 0:00:09.5]} 70...
Bd7 {[%clk 0:00:06.6]} 71. Bb3 {[%clk 0:00:09.6]} 71... Bg4 {[%clk 0:00:06.6]}
72. Bc4 {[%clk 0:00:09.8]} 72... Bf3 {[%clk 0:00:06.8]} 73. Bb3 {[%clk
0:00:09.8]} 73... Be2 {[%clk 0:00:07.1]} 74. Ba2 {[%clk 0:00:08.7]} 74... Bf1
{[%clk 0:00:04.3]} 75. Ke4 {[%clk 0:00:07]} 75... Bh3 {[%clk 0:00:04.3]} 76. Kd4
{[%clk 0:00:05.7]} 76... Bf1 {[%clk 0:00:04.6]} 77. Bb3 {[%clk 0:00:05.7]} 77...
Bh3 {[%clk 0:00:04.9]} 78. Bc4 {[%clk 0:00:04.4]} 78... Bg2 {[%clk 0:00:04.3]}
79. Bd3 {[%clk 0:00:04.5]} 79... Bd5 {[%clk 0:00:04]} 80. Bf5 {[%clk 0:00:04.4]}
80... Bf7 {[%clk 0:00:03.7]} 81. Be4 {[%clk 0:00:04.3]} 81... Ba2 {[%clk
0:00:04.4]} 82. Bd3 {[%clk 0:00:04.6]} 82... Be6 {[%clk 0:00:04.5]} 83. Be4
{[%clk 0:00:05]} 83... Bg4 {[%clk 0:00:05.1]} 84. Bd3 {[%clk 0:00:05.3]} 84...
Bf3 {[%clk 0:00:05.7]} 85. Bc2 {[%clk 0:00:05.4]} 85... Be2 {[%clk 0:00:06.3]}
86. Be4 {[%clk 0:00:05.5]} 86... Bf1 {[%clk 0:00:06.8]} 87. Bf3 {[%clk
0:00:05.3]} 87... Bb5 {[%clk 0:00:07]} 88. Be4 {[%clk 0:00:05.6]} 88... Ke6
{[%clk 0:00:07.7]} 89. Bc2 {[%clk 0:00:05.5]} 89... Kd6 {[%clk 0:00:05.6]} 90.
Ke4 {[%clk 0:00:04.3]} 90... Ke7 {[%clk 0:00:03.1]} 91. Kf5 {[%clk 0:00:03.5]}
91... Kf7 {[%clk 0:00:03.6]} 92. Bb3+ {[%clk 0:00:03.4]} 92... Ke7 {[%clk
0:00:03.7]} 93. Kg6 {[%clk 0:00:02.9]} 93... Bd3+ {[%clk 0:00:04.5]} 94. Kxh6
{[%clk 0:00:03.1]} 94... Kf8 {[%clk 0:00:04.8]} 95. Be6 {[%clk 0:00:02.6]} 95...
Ke7 {[%clk 0:00:02]} 96. f5 {[%clk 0:00:03]} 1-0

[Event "Early-Titled-Tuesday-Blitz-September-05-2023"]
[Site "Chess.com"]
[Date "2023.09.05"]
[Round "9"]
[White "Iball95"]
[Black "blitzo_vich"]
[Result "0-1"]
[WhiteElo "2795"]
[BlackElo "2633"]
[TimeControl "180+1"]
[EndTime "9:45:18 PDT"]
[Termination "blitzo_vich won on time"]

1. e4 {[%clk 0:03:00.9]} 1... c6 {[%clk 0:01:32.6]} 2. c4 {[%clk 0:02:57.7]}
2... d5 {[%clk 0:01:30.1]} 3. exd5 {[%clk 0:02:58.4]} 3... cxd5 {[%clk
0:01:29.6]} 4. d4 {[%clk 0:02:59]} 4... Nf6 {[%clk 0:01:29.5]} 5. Nc3 {[%clk
0:02:59]} 5... Nc6 {[%clk 0:01:29.8]} 6. Nf3 {[%clk 0:02:58.4]} 6... g6 {[%clk
0:01:29.5]} 7. cxd5 {[%clk 0:02:57.8]} 7... Nxd5 {[%clk 0:01:29]} 8. Qb3 {[%clk
0:02:58.4]} 8... Nxc3 {[%clk 0:01:27.4]} 9. Bc4 {[%clk 0:02:57]} 9... Nd5 {[%clk
0:01:23.9]} 10. Bxd5 {[%clk 0:02:56.4]} 10... e6 {[%clk 0:01:24.2]} 11. Bxc6+
{[%clk 0:02:56.1]} 11... bxc6 {[%clk 0:01:24.6]} 12. O-O {[%clk 0:02:56.7]}
12... Bg7 {[%clk 0:01:23.1]} 13. Qc2 {[%clk 0:02:52.5]} 13... Qd5 {[%clk
0:01:19.8]} 14. Re1 {[%clk 0:02:50.6]} 14... O-O {[%clk 0:01:19.8]} 15. Bf4
{[%clk 0:02:44.6]} 15... Ba6 {[%clk 0:01:17.2]} 16. b3 {[%clk 0:02:42.1]} 16...
c5 {[%clk 0:01:13.1]} 17. dxc5 {[%clk 0:02:17.6]} 17... Bxa1 {[%clk 0:01:10.5]}
18. Rxa1 {[%clk 0:02:18.5]} 18... Rac8 {[%clk 0:01:06.8]} 19. b4 {[%clk
0:02:09]} 19... Bd3 {[%clk 0:01:02.6]} 20. Qb2 {[%clk 0:02:05.4]} 20... f6
{[%clk 0:00:58.6]} 21. Rd1 {[%clk 0:02:04.3]} 21... e5 {[%clk 0:00:53.8]} 22.
Be3 {[%clk 0:02:01.9]} 22... Rfd8 {[%clk 0:00:51]} 23. h3 {[%clk 0:02:00.6]}
23... Qc4 {[%clk 0:00:49.7]} 24. Rc1 {[%clk 0:01:57.8]} 24... Qd5 {[%clk
0:00:47.9]} 25. a4 {[%clk 0:01:47]} 25... Be4 {[%clk 0:00:47.4]} 26. Ne1 {[%clk
0:01:46.7]} 26... f5 {[%clk 0:00:39.1]} 27. f3 {[%clk 0:01:46]} 27... Bd3 {[%clk
0:00:38.3]} 28. Rd1 {[%clk 0:01:40.8]} 28... e4 {[%clk 0:00:37.4]} 29. f4 {[%clk
0:01:37.3]} 29... Qc4 {[%clk 0:00:33.1]} 30. Rc1 {[%clk 0:01:36.6]} 30... Qd5
{[%clk 0:00:31.7]} 31. b5 {[%clk 0:01:35.6]} 31... Bc4 {[%clk 0:00:29.7]} 32.
Qb4 {[%clk 0:01:25.3]} 32... Be2 {[%clk 0:00:26.8]} 33. c6 {[%clk 0:01:24.7]}
33... g5 {[%clk 0:00:23.2]} 34. fxg5 {[%clk 0:01:23]} 34... Qe5 {[%clk
0:00:23.3]} 35. Qc5 {[%clk 0:01:11.6]} 35... Rd5 {[%clk 0:00:20.9]} 36. Qc3
{[%clk 0:01:12.1]} 36... Qd6 {[%clk 0:00:17.5]} 37. Qf6 {[%clk 0:01:08.7]} 37...
Qxf6 {[%clk 0:00:16.5]} 38. gxf6 {[%clk 0:01:09.6]} 38... Kf7 {[%clk 0:00:15.9]}
39. Bxa7 {[%clk 0:01:08.1]} 39... f4 {[%clk 0:00:14.6]} 40. b6 {[%clk 0:01:08]}
40... Ba6 {[%clk 0:00:13.4]} 41. b7 {[%clk 0:00:54.8]} 41... Bxb7 {[%clk
0:00:13]} 42. cxb7 {[%clk 0:00:55.7]} 42... Rxc1 {[%clk 0:00:13.3]} 43. Kh2
{[%clk 0:00:56.2]} 43... Rb1 {[%clk 0:00:12]} 44. b8=Q {[%clk 0:00:56.3]} 44...
Rxb8 {[%clk 0:00:12.1]} 45. Bxb8 {[%clk 0:00:57.1]} 45... Rf5 {[%clk 0:00:11.8]}
46. Kg1 {[%clk 0:00:47.7]} 46... Rxf6 {[%clk 0:00:11.5]} 47. a5 {[%clk
0:00:43.9]} 47... Ke8 {[%clk 0:00:11.1]} 48. Bc7 {[%clk 0:00:42.6]} 48... Kd7
{[%clk 0:00:11.1]} 49. Bb6 {[%clk 0:00:42.9]} 49... Kc6 {[%clk 0:00:10.6]} 50.
Bd4 {[%clk 0:00:42.5]} 50... Rf7 {[%clk 0:00:09.9]} 51. a6 {[%clk 0:00:39.5]}
51... Kd5 {[%clk 0:00:09.8]} 52. a7 {[%clk 0:00:38.9]} 52... Rf8 {[%clk
0:00:10.1]} 53. Bb6 {[%clk 0:00:36.2]} 53... Kc6 {[%clk 0:00:09.7]} 54. Bd4
{[%clk 0:00:34.9]} 54... Kd5 {[%clk 0:00:10.1]} 55. Nc2 {[%clk 0:00:35.4]} 55...
Ra8 {[%clk 0:00:09.3]} 56. Kf1 {[%clk 0:00:34.3]} 56... Kc4 {[%clk 0:00:09.5]}
57. Bb6 {[%clk 0:00:34.3]} 57... Kd3 {[%clk 0:00:08.5]} 58. Nb4+ {[%clk
0:00:32.3]} 58... Kd2 {[%clk 0:00:08.5]} 59. Nd5 {[%clk 0:00:25.5]} 59... e3
{[%clk 0:00:08.5]} 60. Nxf4 {[%clk 0:00:16]} 60... Rf8 {[%clk 0:00:08.4]} 61.
Ba5+ {[%clk 0:00:16.2]} 61... Kd1 {[%clk 0:00:07.6]} 62. g3 {[%clk 0:00:14.6]}
62... e2+ {[%clk 0:00:06]} 63. Kf2 {[%clk 0:00:14.9]} 63... Ra8 {[%clk
0:00:05.7]} 64. Nxe2 {[%clk 0:00:14.8]} 64... Rxa7 {[%clk 0:00:05.9]} 65. Nc3+
{[%clk 0:00:04]} 65... Kc2 {[%clk 0:00:04.8]} 66. Bb4 {[%clk 0:00:04.5]} 66...
Kb3 {[%clk 0:00:05.1]} 67. Nd5 {[%clk 0:00:05]} 67... Kc4 {[%clk 0:00:05.2]} 68.
Nf6 {[%clk 0:00:02.3]} 68... Kxb4 {[%clk 0:00:05.2]} 69. Ke3 {[%clk 0:00:02.7]}
69... Kc5 {[%clk 0:00:05.4]} 70. Kf4 {[%clk 0:00:02.9]} 70... Kd6 {[%clk
0:00:05.7]} 71. g4 {[%clk 0:00:02.5]} 71... Rf7 {[%clk 0:00:05.8]} 72. Kg5
{[%clk 0:00:02.3]} 72... Ke6 {[%clk 0:00:06.1]} 73. Nh5 {[%clk 0:00:02.7]} 73...
Ke5 {[%clk 0:00:05.5]} 74. Ng3 {[%clk 0:00:02.6]} 74... Ke6 {[%clk 0:00:05.5]}
75. Nf5 {[%clk 0:00:02.9]} 75... Ke5 {[%clk 0:00:06.1]} 76. h4 {[%clk
0:00:03.5]} 76... Rc7 {[%clk 0:00:05.6]} 77. Kh6 {[%clk 0:00:03.4]} 77... Kf6
{[%clk 0:00:05.4]} 78. Ng3 {[%clk 0:00:03]} 78... Rc4 {[%clk 0:00:05]} 79. g5+
{[%clk 0:00:03.2]} 79... Kf7 {[%clk 0:00:04.6]} 80. h5 {[%clk 0:00:02.5]} 80...
Rg4 {[%clk 0:00:03.7]} 81. Nf5 {[%clk 0:00:02.1]} 81... Rf4 {[%clk 0:00:03.4]}
82. Nd6+ {[%clk 0:00:02.6]} 82... Kg8 {[%clk 0:00:03.6]} 83. Ne8 {[%clk
0:00:02.9]} 83... Rf7 {[%clk 0:00:02.9]} 84. Nf6+ {[%clk 0:00:03.8]} 84... Kh8
{[%clk 0:00:03.2]} 85. Ne4 {[%clk 0:00:03.9]} 85... Re7 {[%clk 0:00:03.1]} 86.
Nf6 {[%clk 0:00:04.4]} 86... Re6 {[%clk 0:00:03.4]} 87. g6 {[%clk 0:00:01.2]}
87... Rxf6 {[%clk 0:00:03.8]} 88. Kg5 {[%clk 0:00:01.6]} 88... Rc6 {[%clk
0:00:03.9]} 89. Kh6 {[%clk 0:00:02.4]} 89... hxg6 {[%clk 0:00:04.1]} 0-1

[Event "Early-Titled-Tuesday-Blitz-September-05-2023"]
[Site "Chess.com"]
[Date "2023.09.05"]
[Round "10"]
[White "Mikedannnn"]
[Black "MartinMatthiesen"]
[Result "0-1"]
[WhiteElo "2605"]
[BlackElo "2510"]
[TimeControl "180+1"]
[EndTime "9:50:43 PDT"]
[Termination "MartinMatthiesen won by resignation"]

1. e4 {[%clk 0:03:00.9]} 1... c6 {[%clk 0:03:00.1]} 2. d4 {[%clk 0:03:00.6]}
2... d5 {[%clk 0:02:56.2]} 3. e5 {[%clk 0:03:00.9]} 3... Bf5 {[%clk 0:02:55.6]}
4. Nf3 {[%clk 0:03:00.8]} 4... e6 {[%clk 0:02:52.2]} 5. Be2 {[%clk 0:03:00.5]}
5... c5 {[%clk 0:02:51.8]} 6. O-O {[%clk 0:02:57]} 6... Nc6 {[%clk 0:02:50.6]}
7. Be3 {[%clk 0:02:50.8]} 7... Qb6 {[%clk 0:02:49.1]} 8. c4 {[%clk 0:02:49]}
8... Qxb2 {[%clk 0:02:34.1]} 9. Nbd2 {[%clk 0:02:48.6]} 9... cxd4 {[%clk
0:02:32.7]} 10. Bf4 {[%clk 0:02:40.1]} 10... d3 {[%clk 0:02:31.7]} 11. cxd5
{[%clk 0:02:34.2]} 11... dxe2 {[%clk 0:02:25.4]} 12. Qxe2 {[%clk 0:02:32.3]}
12... exd5 {[%clk 0:02:25.5]} 13. e6 {[%clk 0:02:23.3]} 13... fxe6 {[%clk
0:02:01.4]} 14. Rab1 {[%clk 0:02:20.8]} 14... Bxb1 {[%clk 0:02:00.1]} 15. Qxe6+
{[%clk 0:02:20.3]} 15... Nge7 {[%clk 0:01:58.6]} 16. Be5 {[%clk 0:02:08.5]}
16... Bf5 {[%clk 0:01:47.7]} 0-1